fUSD/lending_fUSD_20240424
["ID","MTS","AMOUNT","RATE_DAILY","PERIOD"]
[323444634,1713991881146,-525.772263,0.00013699,2]
[323444635,1713991881156,-407.646097,0.00013699,2]
[323444636,1713991881166,-500.0,0.00013699,2]
[323444637,1713991881176,-525.772263,0.00013699,2]
[323444638,1713991881188,-173.85918,0.00013699,2]
[323444639,1713991881199,-407.646097,0.00013699,2]
[323444640,1713991881210,-525.772263,0.00013699,2]
[323444641,1713991881220,-173.85918,0.00013699,2]
[323444642,1713991881231,-525.772263,0.00013699,2]
[323444643,1713991881241,-173.85918,0.00013699,2]
[323444644,1713991881252,-173.85918,0.00013699,2]
[323444645,1713991881262,-407.646097,0.00013699,2]
[323444646,1713991881273,-525.772263,0.00013699,2]
[323444647,1713991881283,-173.85918,0.00013699,2]
[323444648,1713991881294,-525.772263,0.00013699,2]
[323444649,1713991881307,-407.646097,0.00013699,2]
[323444650,1713991881317,-173.85918,0.00013699,2]
[323444651,1713991881327,-525.772263,0.00013699,2]
[323444652,1713991881338,-407.646097,0.00013699,2]
[323444653,1713991881349,-173.85918,0.00013699,2]
[323444654,1713991881359,-525.772263,0.00013699,2]
[323444655,1713991881369,-407.646097,0.00013699,2]
[323444656,1713991881380,-525.772265,0.00013699,2]
[323444657,1713991881390,-407.646097,0.00013699,2]
[323444658,1713991881401,-407.646097,0.00013699,2]
[323444659,1713991881411,-173.85918,0.00013699,2]
[323444660,1713991881422,-407.646097,0.00013699,2]
[323444661,1713991881432,-173.85918,0.00013699,2]
[323444662,1713991881443,-173.85918,0.00013699,2]
[323444663,1713991881453,-173.85918,0.00013699,2]
[323444664,1713991881463,-407.646097,0.00013699,2]
[323444665,1713991881473,-173.85918,0.00013699,2]
[323444666,1713991881484,-407.646097,0.00013699,2]
[323444667,1713991881496,-173.85918,0.00013699,2]
[323444668,1713991881506,-407.646097,0.00013699,2]
[323444669,1713991881516,-173.85918,0.00013699,2]
[323444670,1713991881527,-407.646097,0.00013699,2]
[323444671,1713991881537,-173.85918,0.00013699,2]
[323444672,1713991881548,-173.85918,0.00013699,2]
[323444673,1713991881560,-173.85918,0.00013699,2]
[323444674,1713991881570,-151.0,0.00013699,2]
[323444675,1713991881580,-407.646097,0.00013699,2]
[323444676,1713991881591,-173.85918,0.00013699,2]
[323444677,1713991881601,-151.0,0.00013699,2]
[323444678,1713991881612,-407.646097,0.00013699,2]
[323444679,1713991881623,-173.85918,0.00013699,2]
[323444680,1713991881634,-151.0,0.00013699,2]
[323444681,1713991881645,-407.646097,0.00013699,2]
[323444682,1713991881656,-151.0,0.00013699,2]
[323444683,1713991881667,-173.859188,0.00013699,2]
[323444684,1713991881678,-407.646097,0.00013699,2]
[323444685,1713991881690,-151.0,0.00013699,2]
[323444686,1713991881700,-407.646097,0.00013699,2]
[323444687,1713991881711,-151.0,0.00013699,2]
[323444688,1713991881721,-407.646097,0.00013699,2]
[323444689,1713991881731,-151.0,0.00013699,2]
[323444690,1713991881742,-407.646101,0.00013699,2]
[323444691,1713991881752,-151.0,0.00013699,2]
[323444692,1713991881762,-151.0,0.00013699,2]
[323444693,1713991881771,-215.451377,0.00013699,2]
[323444694,1713991881781,-227.376088,0.00013699,2]
[323444695,1713991881791,-214.299894,0.00013699,2]
[323444696,1713991881800,-227.376088,0.00013699,2]
[323444697,1713991881810,-227.376088,0.00013699,2]
[323444698,1713991881819,-227.376088,0.00013699,2]
[323444699,1713991881829,-227.376088,0.00013699,2]
[323444700,1713991881838,-227.376088,0.00013699,2]
[323444701,1713991881847,-227.376088,0.00013699,2]
[323444702,1713991881856,-227.376088,0.00013699,2]
[323444703,1713991881866,-2686.860658,0.00013699,2]
[323444704,1713991881874,-227.376088,0.00013699,2]
[323444705,1713991881883,-2686.860658,0.00013699,2]
[323444706,1713991881892,-227.376088,0.00013699,2]
[323444707,1713991881901,-2686.860658,0.00013699,2]
[323444708,1713991881910,-227.376088,0.00013699,2]
[323444709,1713991881920,-2686.860658,0.00013699,2]
[323444710,1713991881929,-227.376088,0.00013699,2]
[323444711,1713991881940,-2686.860658,0.00013699,2]
[323444712,1713991881950,-227.376088,0.00013699,2]
[323444713,1713991881960,-2686.860658,0.00013699,2]
[323444714,1713991881969,-227.376088,0.00013699,2]
[323444715,1713991881979,-2686.860658,0.00013699,2]
[323444716,1713991881988,-227.376088,0.00013699,2]
[323444717,1713991881998,-2686.860658,0.00013699,2]
[323444718,1713991882008,-227.376088,0.00013699,2]
[323444719,1713991882017,-2686.860658,0.00013699,2]
[323444720,1713991882027,-2686.860658,0.00013699,2]
[323444721,1713991882036,-227.376088,0.00013699,2]
[323444722,1713991882046,-227.376088,0.00013699,2]
[323444723,1713991882055,-2686.860658,0.00013699,2]
[323444724,1713991882065,-227.376088,0.00013699,2]
[323444725,1713991882075,-2686.860658,0.00013699,2]
[323444726,1713991882085,-227.376086,0.00013699,2]
[323444727,1713991882095,-2686.860658,0.00013699,2]
[323444728,1713991882106,-10000.0,0.00013699,2]
[323444729,1713991882118,-10000.0,0.00013699,2]
[323444730,1713991882128,-2686.860658,0.00013699,2]
[323444731,1713991882138,-10000.0,0.00013699,2]
[323444732,1713991882149,-2686.860658,0.00013699,2]
[323444733,1713991882159,-10000.0,0.00013699,2]
[323444734,1713991882169,-2686.860658,0.00013699,2]
[323444735,1713991882180,-10000.0,0.00013699,2]
[323444736,1713991882192,-2686.860658,0.00013699,2]
[323444737,1713991882202,-10000.0,0.00013699,2]
[323444738,1713991882212,-2686.860658,0.00013699,2]
[323444739,1713991882222,-10000.0,0.00013699,2]
[323444740,1713991882232,-2686.860658,0.00013699,2]
[323444741,1713991882241,-10000.0,0.00013699,2]
[323444742,1713991882251,-10000.0,0.00013699,2]
[323444743,1713991882260,-10000.0,0.00013699,2]
[323444744,1713991882269,-10000.0,0.00013699,2]
[323444745,1713991882280,-10000.0,0.00013699,2]
[323444746,1713991882290,-10000.0,0.00013699,2]
[323444747,1713991882300,-10000.0,0.00013699,2]
[323444748,1713991882310,-10000.0,0.00013699,2]
[323444749,1713991882322,-10000.0,0.00013699,2]
[323444750,1713991882332,-151.39627,0.00013699,2]
[323444751,1713991882341,-151.39627,0.00013699,2]
[323444752,1713991882351,-151.39627,0.00013699,2]
[323444753,1713991882362,-10000.0,0.00013699,2]
[323444754,1713991882372,-151.39627,0.00013699,2]
[323444755,1713991882382,-151.39627,0.00013699,2]
[323444756,1713991882392,-10000.0,0.00013699,2]
[323444757,1713991882403,-1000.0,0.00013699,2]
[323444758,1713991882413,-10000.0,0.00013699,2]
[323444759,1713991882423,-151.39627,0.00013699,2]
[323444760,1713991882436,-10000.0,0.00013699,2]
[323444761,1713991882445,-151.39627,0.00013699,2]
[323444762,1713991882455,-10000.0,0.00013699,2]
[323444763,1713991882465,-151.39627,0.00013699,2]
[323444764,1713991882474,-1000.0,0.00013699,2]
[323444765,1713991882486,-151.39627,0.00013699,2]
[323444766,1713991882495,-10000.0,0.00013699,2]
[323444767,1713991882505,-1000.0,0.00013699,2]
[323444768,1713991882515,-1000.0,0.00013699,2]
[323444769,1713991882525,-151.39627,0.00013699,2]
[323444770,1713991882535,-1000.0,0.00013699,2]
[323444771,1713991882544,-10000.0,0.00013699,2]
[323444772,1713991882554,-151.39627,0.00013699,2]
[323444773,1713991882563,-1000.0,0.00013699,2]
[323444774,1713991882572,-1000.0,0.00013699,2]
[323444775,1713991882581,-151.39627,0.00013699,2]
[323444776,1713991882591,-10000.0,0.00013699,2]
[323444777,1713991882600,-1000.0,0.00013699,2]
[323444778,1713991882610,-151.39627,0.00013699,2]
[323444779,1713991882619,-1000.0,0.00013699,2]
[323444780,1713991882629,-151.39627,0.00013699,2]
[323444781,1713991882640,-1000.0,0.00013699,2]
[323444782,1713991882650,-151.39627,0.00013699,2]
[323444783,1713991882660,-1000.0,0.00013699,2]
[323444784,1713991882670,-10000.0,0.00013699,2]
[323444785,1713991882680,-1000.0,0.00013699,2]
[323444786,1713991882696,-151.39627,0.00013699,2]
[323444787,1713991882705,-1000.0,0.00013699,2]
[323444788,1713991882715,-10000.0,0.00013699,2]
[323444789,1713991882725,-151.39627,0.00013699,2]
[323444790,1713991882735,-1000.0,0.00013699,2]
[323444791,1713991882745,-151.39627,0.00013699,2]
[323444792,1713991882756,-1000.0,0.00013699,2]
[323444793,1713991882766,-10000.0,0.00013699,2]
[323444794,1713991882776,-151.39627,0.00013699,2]
[323444795,1713991882786,-1000.0,0.00013699,2]
[323444796,1713991882796,-10000.0,0.00013699,2]
[323444797,1713991882806,-1000.0,0.00013699,2]
[323444798,1713991882816,-151.396279,0.00013699,2]
[323444799,1713991882826,-10000.0,0.00013699,2]
[323444800,1713991882836,-1000.0,0.00013699,2]
[323444801,1713991882846,-10000.0,0.00013699,2]
[323444802,1713991882855,-1000.0,0.00013699,2]
[323444803,1713991882865,-5846.531625,0.00013699,2]
[323444804,1713991882874,-1000.0,0.00013699,2]
[323444805,1713991882884,-1000.0,0.00013699,2]
[323444806,1713991882894,-1000.0,0.00013699,2]
[323444807,1713991882904,-1000.0,0.00013699,2]
[323444808,1713991882913,-2497.24832,0.00013699,2]
[323444809,1713991882924,-2497.24832,0.00013699,2]
[323444810,1713991882936,-2497.24832,0.00013699,2]
[323444811,1713991882946,-2497.24832,0.00013699,2]
[323444812,1713991882956,-2497.24832,0.00013699,2]
[323444813,1713991882966,-2497.24832,0.00013699,2]
[323444814,1713991882975,-2497.24832,0.00013699,2]
[323444815,1713991882985,-2497.24832,0.00013699,2]
[323444816,1713991882994,-2497.24832,0.00013699,2]
[323444817,1713991883004,-2497.24832,0.00013699,2]
[323444818,1713991883014,-2497.24832,0.00013699,2]
[323444819,1713991883023,-2497.24832,0.00013699,2]
[323444820,1713991883033,-2497.24832,0.00013699,2]
[323444821,1713991883043,-2497.24832,0.00013699,2]
[323444822,1713991883053,-2497.24832,0.00013699,2]
[323444823,1713991883063,-2497.24832,0.00013699,2]
[323444824,1713991883073,-151.0,0.00013699,2]
[323444825,1713991883083,-2497.24832,0.00013699,2]
[323444826,1713991883093,-151.0,0.00013699,2]
[323444827,1713991883102,-151.0,0.00013699,2]
[323444828,1713991883113,-2497.24832,0.00013699,2]
[323444829,1713991883123,-151.0,0.00013699,2]
[323444830,1713991883132,-2497.24832,0.00013699,2]
[323444831,1713991883142,-151.0,0.00013699,2]
[323444832,1713991883152,-2497.248312,0.00013699,2]
[323444833,1713991883161,-151.0,0.00013699,2]
[323444834,1713991883171,-151.0,0.00013699,2]
[323444835,1713991883181,-151.0,0.00013699,2]
[323444836,1713991883196,-151.0,0.00013699,2]
[323444837,1713991883205,-151.0,0.00013699,2]
[323444838,1713991883216,-151.0,0.00013699,2]
[323444839,1713991883227,-151.0,0.00013699,2]
[323444840,1713991883236,-151.0,0.00013699,2]
[323444841,1713991883247,-151.0,0.00013699,2]
[323444842,1713991883257,-151.0,0.00013699,2]
[323444843,1713991883267,-151.0,0.00013699,2]
[323444844,1713991883277,-151.0,0.00013699,2]
[323444845,1713991883287,-151.0,0.00013699,2]
[323444846,1713991883298,-151.0,0.00013699,2]
[323444847,1713991883311,-151.0,0.00013699,2]
[323444848,1713991883321,-151.0,0.00013699,2]
[323444849,1713991883331,-151.0,0.00013699,2]
[323444850,1713991883341,-151.0,0.00013699,2]
[323444851,1713991883350,-151.0,0.00013699,2]
[323444852,1713991883360,-151.0,0.00013699,2]
[323444853,1713991883370,-151.0,0.00013699,2]
[323444854,1713991883380,-151.0,0.00013699,2]
[323444855,1713991883391,-301.497552,0.00013699,2]
[323444856,1713991883401,-151.0,0.00013699,2]
[323444857,1713991883411,-151.0,0.00013699,2]
[323444858,1713991883420,-248.201728,0.00013699,2]
[323444859,1713991883431,-500.0,0.00013699,2]
[323444860,1713991883445,-500.0,0.00013699,2]
[323444861,1713991883455,-500.0,0.00013699,2]
[323444862,1713991883467,-500.0,0.00013699,2]
[323444863,1713991883478,-500.0,0.00013699,2]
[323444864,1713991883488,-500.0,0.00013699,2]
[323444865,1713991883498,-500.0,0.00013699,2]
[323444866,1713991883507,-500.0,0.00013699,2]
[323444867,1713991883517,-500.0,0.00013699,2]
[323444868,1713991883527,-500.0,0.00013699,2]
[323444869,1713991883537,-500.0,0.00013699,2]
[323444870,1713991883546,-500.0,0.00013699,2]
[323444871,1713991883555,-500.0,0.00013699,2]
[323444872,1713991883565,-500.0,0.00013699,2]
[323444873,1713991883575,-500.0,0.00013699,2]
[323444874,1713991883584,-500.0,0.00013699,2]
[323444875,1713991883593,-500.0,0.00013699,2]
[323444876,1713991883602,-500.0,0.00013699,2]
[323444877,1713991883611,-500.0,0.00013699,2]
[323444878,1713991883620,-500.0,0.00013699,2]
[323444879,1713991883630,-166.730436,0.00013699,2]
[323444880,1713991883639,-166.730436,0.00013699,2]
[323444881,1713991883648,-166.730436,0.00013699,2]
[323444882,1713991883657,-166.730436,0.00013699,2]
[323444883,1713991883666,-166.730436,0.00013699,2]
[323444884,1713991883675,-166.730436,0.00013699,2]
[323444885,1713991883687,-150.0,0.00013699,2]
[323444886,1713991883696,-250.0,0.000137,2]
[323444887,1713991883705,-1829.23,0.000137,2]
[323444888,1713991883714,-1829.23,0.000137,2]
[323444889,1713991883723,-1829.23,0.000137,2]
[323444890,1713991883732,-1829.23,0.000137,2]
[323444891,1713991883741,-1829.23,0.000137,2]
[323444892,1713991883751,-1829.23,0.000137,2]
[323444893,1713991883760,-1297.76,0.000137,2]
[323444894,1713991883769,-1297.76,0.000137,2]
[323444895,1713991883779,-1297.76,0.000137,2]
[323444896,1713991883788,-1297.76,0.000137,2]
[323444897,1713991883797,-1297.76,0.000137,2]
[323444898,1713991883806,-208.61,0.00013735,2]
[323444899,1713991883816,-191.2,0.00013738,2]
[323444900,1713991883825,-24355.1392229,0.00013962,2]
[323444901,1713991883835,-1924.74,0.00013972,2]
[323444902,1713991883844,-500.0,0.00013972,2]
[323444903,1713991883853,-1035.0,0.00013972,2]
[323444904,1713991883862,-536.90700774,0.00013972,2]
[323444905,1713991883872,-647.06,0.00013972,2]
[323444906,1713991883881,-500.0,0.00013972,2]
[323444907,1713991883890,-840.66,0.00013972,2]
[323444908,1713991883900,-805.34,0.00013972,2]
[323444909,1713991883909,-856.22,0.00013972,2]
[323444910,1713991883919,-500.0,0.00013972,2]
[323444911,1713991883928,-197.32116675,0.00013972,2]
[323444912,1713991883941,-500.0,0.00013972,2]
[323444913,1713991883950,-500.0,0.00013972,2]
[323444914,1713991883960,-500.0,0.00013972,2]
[323444915,1713991883968,-615.27,0.00013972,2]
[323444916,1713991883977,-574.89,0.00013972,2]
[323444917,1713991883987,-591.14,0.00013972,2]
[323444918,1713991883996,-506.23,0.00013972,2]
[323444919,1713991884005,-859.61,0.00013972,2]
[323444920,1713991884014,-842.34,0.00013972,2]
[323444921,1713991884023,-548.43,0.00013972,2]
[323444922,1713991884033,-500.0,0.00013972,2]
[323444923,1713991884042,-500.0,0.00013972,2]
[323444924,1713991884052,-665.53,0.00013972,2]
[323444925,1713991884064,-500.0,0.00013972,2]
[323444926,1713991884075,-500.0,0.00013972,2]
[323444927,1713991884087,-500.0,0.00013972,2]
[323444928,1713991884099,-736.69,0.00013972,2]
[323444929,1713991884110,-826.15,0.00013972,2]
[323444930,1713991884120,-500.0,0.00013972,2]
[323444931,1713991884131,-500.0,0.00013972,2]
[323444932,1713991884141,-807.78,0.00013972,2]
[323444933,1713991884151,-705.7,0.00013972,2]
[323444934,1713991884163,-1307.93,0.00013972,2]
[323444935,1713991884174,-546.95,0.00013972,2]
[323444936,1713991884185,-1642.17,0.00013972,2]
[323444937,1713991884197,-805.45,0.00013972,2]
[323444938,1713991884208,-500.0,0.00013972,2]
[323444939,1713991884219,-1911.86,0.00013972,2]
[323444940,1713991884231,-500.0,0.00013972,2]
[323444941,1713991884242,-1296.39,0.00013972,2]
[323444942,1713991884254,-690.75,0.00013972,2]
[323444943,1713991884265,-500.0,0.00013972,2]
[323444944,1713991884274,-857.69,0.00013972,2]
[323444945,1713991884284,-2921.56,0.00013972,2]
[323444946,1713991884295,-1941.91,0.00013972,2]
[323444947,1713991884308,-936.37,0.00013972,2]
[323444948,1713991884319,-500.0,0.00013972,2]
[323444949,1713991884330,-1967.54,0.00013972,2]
[323444950,1713991884340,-500.0,0.00013972,2]
[323444951,1713991884351,-3113.04,0.00013972,2]
[323444952,1713991884362,-621.85,0.00013972,2]
[323444953,1713991884373,-611.57,0.00013972,2]
[323444954,1713991884383,-2015.75,0.00013972,2]
[323444955,1713991884395,-500.0,0.00013972,2]
[323444956,1713991884406,-1275.63,0.00013972,2]
[323444957,1713991884418,-696.19,0.00013972,2]
[323444958,1713991884427,-1820.17,0.00013972,2]
[323444959,1713991884440,-1464.99,0.00013972,2]
[323444960,1713991884449,-947.66,0.00013972,2]
[323444961,1713991884460,-2801.3,0.00013972,2]
[323444962,1713991884472,-41852.14,0.00013972,2]
[323444963,1713991884484,-500.0,0.00013972,2]
[323444964,1713991884495,-500.0,0.00013972,2]
[323444965,1713991884506,-1433.62,0.00013972,2]
[323444966,1713991884519,-1096.33,0.00013972,2]
[323444967,1713991884531,-1204.62,0.00013972,2]
[323444968,1713991884542,-1145.17,0.00013972,2]
[323444969,1713991884553,-670.73,0.00013972,2]
[323444970,1713991884564,-818.13,0.00013972,2]
[323444971,1713991884575,-802.18,0.00013972,2]
[323444972,1713991884585,-27802.61,0.00013972,2]
[323444973,1713991884597,-926.5,0.00013972,2]
[323444974,1713991884609,-956.63,0.00013972,2]
[323444975,1713991884620,-1022.62,0.00013972,2]
[323444976,1713991884631,-1268.18,0.00013972,2]
[323444977,1713991884643,-807.35,0.00013972,2]
[323444978,1713991884655,-552.13,0.00013972,2]
[323444979,1713991884667,-745.21,0.00013972,2]
[323444980,1713991884678,-1518.01,0.00013972,2]
[323444981,1713991884692,-1304.69,0.00013972,2]
[323444982,1713991884703,-1258.54,0.00013972,2]
[323444983,1713991884714,-1273.21,0.00013972,2]
[323444984,1713991884725,-500.0,0.00013972,2]
[323444985,1713991884735,-855.16,0.00013972,2]
[323444986,1713991884746,-3556.77,0.00013972,2]
[323444987,1713991884756,-1147.95,0.00013972,2]
[323444988,1713991884767,-661.08,0.00013972,2]
[323444989,1713991884777,-616.17,0.00013972,2]
[323444990,1713991884788,-500.0,0.00013972,2]
[323444991,1713991884799,-711.37,0.00013972,2]
[323444992,1713991884810,-1278.88,0.00013972,2]
[323444993,1713991884822,-500.0,0.00013972,2]
[323444994,1713991884832,-630.07,0.00013972,2]
[323444995,1713991884843,-1352.75,0.00013972,2]
[323444996,1713991884854,-1942.44,0.00013972,2]
[323444997,1713991884865,-500.0,0.00013972,2]
[323444998,1713991884875,-1004.93,0.00013972,2]
[323444999,1713991884887,-500.0,0.00013972,2]
[323445000,1713991884897,-970.3,0.00013972,2]
[323445001,1713991884907,-607.85,0.00013972,2]
[323445002,1713991884918,-500.0,0.00013972,2]
[323445003,1713991884929,-500.0,0.00013972,2]
[323445004,1713991884941,-2785.8,0.00013972,2]
[323445005,1713991884952,-1408.5,0.00013972,2]
[323445006,1713991884963,-2017.97,0.00013972,2]
[323445007,1713991884974,-1253.8,0.00013972,2]
[323445008,1713991884986,-2871.24,0.00013972,2]
[323445009,1713991884997,-500.0,0.00013972,2]
[323445010,1713991885008,-556.02,0.00013972,2]
[323445011,1713991885019,-1364.69,0.00013972,2]
[323445012,1713991885029,-1040.15,0.00013972,2]
[323445013,1713991885040,-2840.23,0.00013972,2]
[323445014,1713991885050,-500.0,0.00013972,2]
[323445015,1713991885060,-2059.51,0.00013972,2]
[323445016,1713991885071,-500.0,0.00013972,2]
[323445017,1713991885082,-715.7,0.00013972,2]
[323445018,1713991885092,-500.0,0.00013972,2]
[323445019,1713991885102,-544.33,0.00013972,2]
[323445020,1713991885113,-1817.33,0.00013972,2]
[323445021,1713991885123,-1548.88,0.00013972,2]
[323445022,1713991885134,-987.87,0.00013972,2]
[323445023,1713991885145,-616.24,0.00013972,2]
[323445024,1713991885156,-3875.02,0.00013972,2]
[323445025,1713991885167,-500.0,0.00013972,2]
[323445026,1713991885178,-1544.0,0.00013972,2]
[323445027,1713991885190,-1231.43,0.00013972,2]
[323445028,1713991885202,-3734.67,0.00013972,2]
[323445029,1713991885214,-2789.34,0.00013972,2]
[323445030,1713991885226,-8238.28,0.00013972,2]
[323445031,1713991885238,-1407.11,0.00013972,2]
[323445032,1713991885249,-500.0,0.00013972,2]
[323445033,1713991885260,-1307.71,0.00013972,2]
[323445034,1713991885272,-1027.0,0.00013972,2]
[323445035,1713991885283,-835.89,0.00013972,2]
[323445036,1713991885294,-1276.67,0.00013972,2]
[323445037,1713991885308,-500.0,0.00013972,2]
[323445038,1713991885319,-1932.45,0.00013972,2]
[323445039,1713991885330,-1468.72,0.00013972,2]
[323445040,1713991885341,-500.0,0.00013972,2]
[323445041,1713991885353,-713.89,0.00013972,2]
[323445042,1713991885363,-846.41,0.00013972,2]
[323445043,1713991885374,-8052.86,0.00013972,2]
[323445044,1713991885385,-500.0,0.00013972,2]
[323445045,1713991885395,-677.71,0.00013972,2]
[323445046,1713991885406,-259.0,0.00014,3]
[323445047,1713991885416,-1000.0,0.00014,2]
[323445048,1713991885427,-247.86498809,0.00014,2]
[323445049,1713991885440,-5729336.7,0.00014,2]
[323445050,1713991885450,-500.0,0.00014,2]
[323445051,1713991885461,-166.730436,0.00014,2]
[323445052,1713991885471,-166.730426,0.00014,2]
[323445053,1713991885482,-2800.0,0.00014,2]
[323445054,1713991885492,-284.97,0.00014,2]
[323445055,1713991885503,-284.97,0.00014,2]
[323445056,1713991885513,-284.97,0.00014,2]
[323445057,1713991885523,-284.97,0.00014,2]
[323445058,1713991885534,-284.97,0.00014,2]
[323445059,1713991885544,-284.97,0.00014,2]
[323445060,1713991885555,-284.97,0.00014,2]
[323445061,1713991885566,-284.97,0.00014,2]
[323445062,1713991885577,-284.97,0.00014,2]
[323445063,1713991885588,-284.97,0.00014,2]
[323445064,1713991885599,-284.97,0.00014,2]
[323445065,1713991885609,-284.97,0.00014,2]
[323445066,1713991885619,-284.97,0.00014,2]
[323445067,1713991885630,-284.97,0.00014,2]
[323445068,1713991885640,-284.97,0.00014,2]
[323445069,1713991885651,-284.97,0.00014,2]
[323445070,1713991885661,-284.97,0.00014,2]
[323445071,1713991885671,-208.61,0.00014161,2]
[323445072,1713991885681,-516.0,0.00014164,2]
[323445073,1713991885693,-1666.0,0.00014171,2]
[323445074,1713991885703,-1626.0,0.00014192,2]
[323445075,1713991885713,-1924.74,0.00014246,2]
[323445076,1713991885723,-500.0,0.00014246,2]
[323445077,1713991885733,-1035.0,0.00014246,2]
[323445078,1713991885744,-647.06,0.00014246,2]
[323445079,1713991885754,-158.54,0.00014246,2]
[323445080,1713991885764,-840.66,0.00014246,2]
[323445081,1713991885775,-805.34,0.00014246,2]
[323445082,1713991885785,-856.22,0.00014246,2]
[323445083,1713991885795,-500.0,0.00014246,2]
[323445084,1713991885806,-641.03796604,0.00014246,2]
[323445085,1713991885817,-500.0,0.00014246,2]
[323445086,1713991885827,-500.0,0.00014246,2]
[323445087,1713991885837,-615.27,0.00014246,2]
[323445088,1713991885847,-574.89,0.00014246,2]
[323445089,1713991885858,-591.14,0.00014246,2]
[323445090,1713991885868,-506.23,0.00014246,2]
[323445091,1713991885879,-859.61,0.00014246,2]
[323445092,1713991885889,-842.34,0.00014246,2]
[323445093,1713991885899,-548.43,0.00014246,2]
[323445094,1713991885910,-500.0,0.00014246,2]
[323445095,1713991885920,-500.0,0.00014246,2]
[323445096,1713991885930,-665.53,0.00014246,2]
[323445097,1713991885943,-500.0,0.00014246,2]
[323445098,1713991885953,-500.0,0.00014246,2]
[323445099,1713991885964,-200.89884016,0.00014246,2]
[323445100,1713991885974,-736.69,0.00014246,2]
[323445101,1713991885985,-826.15,0.00014246,2]
[323445102,1713991885995,-500.0,0.00014246,2]
[323445103,1713991886006,-500.0,0.00014246,2]
[323445104,1713991886016,-807.78,0.00014246,2]
[323445105,1713991886027,-705.7,0.00014246,2]
[323445106,1713991886037,-1307.93,0.00014246,2]
[323445107,1713991886047,-546.95,0.00014246,2]
[323445108,1713991886058,-1642.17,0.00014246,2]
[323445109,1713991886067,-805.45,0.00014246,2]
[323445110,1713991886078,-500.0,0.00014246,2]
[323445111,1713991886087,-1911.86,0.00014246,2]
[323445112,1713991886098,-474.01220885,0.00014246,2]
[323445113,1713991886109,-1296.39,0.00014246,2]
[323445114,1713991886120,-690.75,0.00014246,2]
[323445115,1713991886131,-500.0,0.00014246,2]
[323445116,1713991886141,-857.69,0.00014246,2]
[323445117,1713991886151,-2921.56,0.00014246,2]
[323445118,1713991886162,-1941.91,0.00014246,2]
[323445119,1713991886172,-936.37,0.00014246,2]
[323445120,1713991886182,-500.0,0.00014246,2]
[323445121,1713991886195,-1967.54,0.00014246,2]
[323445122,1713991886206,-500.0,0.00014246,2]
[323445123,1713991886217,-3113.04,0.00014246,2]
[323445124,1713991886227,-621.85,0.00014246,2]
[323445125,1713991886237,-611.57,0.00014246,2]
[323445126,1713991886248,-2015.75,0.00014246,2]
[323445127,1713991886258,-474.53869256,0.00014246,2]
[323445128,1713991886268,-1275.63,0.00014246,2]
[323445129,1713991886278,-696.19,0.00014246,2]
[323445130,1713991886288,-1820.17,0.00014246,2]
[323445131,1713991886299,-1464.99,0.00014246,2]
[323445132,1713991886312,-947.66,0.00014246,2]
[323445133,1713991886322,-2801.3,0.00014246,2]